[Event "Titled Tuesday Blitz December 20 Late 2022"]
[White "Adel, Sara"]
[Black "Marchesich, Giovanni"]
[WhiteFideId "10616764"]
[BlackFideId "2824790"]
[WhiteElo "1997"]
[BlackElo "2200"]
[Result "1-0"]
[Round "06"]
[TimeControl "180+1"]
[Date "2022.12.21"]
[WhiteClock "0:00:13"]
[BlackClock "0:00:40"]

1. e4 {[%clk 0:01:54]}  f6 {[%clk 0:02:54]} 2. f4 {[%clk 0:01:33]}  g6 {[%clk 0:02:54]} 3. Nf3 {[%clk 0:01:33]}  Bg7 {[%clk 0:02:55]} 4. Bc4 {[%clk 0:01:34]}  e6 {[%clk 0:02:54]} 5. O-O {[%clk 0:01:34]}  Nh6 {[%clk 0:02:54]} 6. Qe1 {[%clk 0:01:34]}  Nf7 {[%clk 0:02:55]} 7. Nc3 {[%clk 0:01:34]}  O-O {[%clk 0:02:55]} 8. d3 {[%clk 0:01:34]}  c6 {[%clk 0:02:54]} 9. f5 {[%clk 0:01:29]}  b5 {[%clk 0:02:43]} 10. fxe6 {[%clk 0:01:17]}  dxe6 {[%clk 0:02:42]} 11. Bb3 {[%clk 0:01:17]}  e5 {[%clk 0:02:34]} 12. Be3 {[%clk 0:01:14]}  Na6 {[%clk 0:02:28]} 13. a4 {[%clk 0:01:09]}  b4 {[%clk 0:02:27]} 14. Ne2 {[%clk 0:01:04]}  Qe7 {[%clk 0:02:27]} 15. Bc4 {[%clk 0:01:01]}  Kh8 {[%clk 0:02:27]} 16. b3 {[%clk 0:01:00]}  Nd6 {[%clk 0:02:26]} 17. Bxa6 {[%clk 0:00:58]}  Bxa6 {[%clk 0:02:26]} 18. Qxb4 {[%clk 0:00:58]}  Rab8 {[%clk 0:02:17]} 19. Qa5 {[%clk 0:00:57]}  Bb7 {[%clk 0:02:16]} 20. Bc5 {[%clk 0:00:57]}  Qe6 {[%clk 0:02:12]} 21. Qxa7 {[%clk 0:00:56]}  Rfd8 {[%clk 0:02:02]} 22. Nd2 {[%clk 0:00:56]}  Bf8 {[%clk 0:01:47]} 23. Rf3 {[%clk 0:00:47]}  Ra8 {[%clk 0:01:41]} 24. Qb6 {[%clk 0:00:47]}  Rdb8 {[%clk 0:01:40]} 25. Raf1 {[%clk 0:00:45]}  Ra6 {[%clk 0:01:31]} 26. Rxf6 {[%clk 0:00:27]}  Rxb6 {[%clk 0:01:00]} 27. Rxe6 {[%clk 0:00:22]}  Nxe4 {[%clk 0:00:49]} 28. Nxe4 {[%clk 0:00:18]}  Bxc5+ {[%clk 0:00:48]} 29. Nxc5 {[%clk 0:00:19]}  Rb4 {[%clk 0:00:48]} 30. Rxe5 {[%clk 0:00:18]}  Rg4 {[%clk 0:00:47]} 31. Re7 {[%clk 0:00:18]}  Bc8 {[%clk 0:00:47]} 32. Rff7 {[%clk 0:00:17]}  Rh4 {[%clk 0:00:47]} 33. g3 {[%clk 0:00:17]}  Rh5 {[%clk 0:00:47]} 34. Nf4 {[%clk 0:00:17]}  Rh6 {[%clk 0:00:46]} 35. Nd7 {[%clk 0:00:16]}  Bxd7 {[%clk 0:00:45]} 36. Rxd7 {[%clk 0:00:16]}  Re8 {[%clk 0:00:46]} 37. g4 {[%clk 0:00:15]}  g5 {[%clk 0:00:45]} 38. Nh5 {[%clk 0:00:15]}  Kg8 {[%clk 0:00:43]} 39. Rfe7 {[%clk 0:00:15]}  Rf8 {[%clk 0:00:43]} 40. Rg7+ {[%clk 0:00:14]}  Kh8 {[%clk 0:00:43]} 41. Rxg5 {[%clk 0:00:14]}  Re6 {[%clk 0:00:41]} 42. Rf5 {[%clk 0:00:14]}  Rg8 {[%clk 0:00:41]} 43. h3 {[%clk 0:00:13]}  Rge8 {[%clk 0:00:40]} 44. Rff7 {[%clk 0:00:13]}  Re1+ {[%clk 0:00:40]} 45. Kg2 {[%clk 0:00:13]}  R8e3 {[%clk 0:00:39]} 46. Rxh7+ {[%clk 0:00:12]}  Kg8 {[%clk 0:00:39]} 47. Nf6+ {[%clk 0:00:12]}  Kf8 {[%clk 0:00:40]} 48. Rh8# {[%clk 0:00:13]} 1-0


[Site "https://www.chess.com"]

[Event "Titled Tuesday Blitz December 20 Late 2022"]
[White "Alex_Sahakyan2006"]
[Black "Kazakouski, Valery"]
[BlackFideId "13507443"]
[WhiteElo "2626"]
[BlackElo "2788"]
[Result "0-1"]
[Round "06"]
[TimeControl "180+1"]
[Date "2022.12.21"]
[WhiteClock "0:01:10"]
[BlackClock "0:00:50"]

1. c4 {[%clk 0:03:00]}  e6 {[%clk 0:02:55]} 2. Nc3 {[%clk 0:02:56]}  d5 {[%clk 0:02:50]} 3. d4 {[%clk 0:02:56]}  a6 {[%clk 0:02:51]} 4. cxd5 {[%clk 0:02:53]}  exd5 {[%clk 0:02:52]} 5. Nf3 {[%clk 0:02:53]}  Nf6 {[%clk 0:02:51]} 6. Bg5 {[%clk 0:02:53]}  Be6 {[%clk 0:02:51]} 7. Bxf6 {[%clk 0:02:53]}  Qxf6 {[%clk 0:02:52]} 8. Qb3 {[%clk 0:02:53]}  Ra7 {[%clk 0:02:53]} 9. h4 {[%clk 0:02:52]}  h6 {[%clk 0:02:52]} 10. g3 {[%clk 0:02:52]}  Qd8 {[%clk 0:02:52]} 11. Bh3 {[%clk 0:02:51]}  Bd6 {[%clk 0:02:53]} 12. Bxe6 {[%clk 0:02:51]}  fxe6 {[%clk 0:02:54]} 13. e4 {[%clk 0:02:49]}  O-O {[%clk 0:02:53]} 14. exd5 {[%clk 0:02:49]}  Rxf3 {[%clk 0:02:52]} 15. dxe6 {[%clk 0:02:50]}  Qe8 {[%clk 0:02:44]} 16. O-O-O {[%clk 0:02:45]}  Nc6 {[%clk 0:02:42]} 17. Rhe1 {[%clk 0:02:40]}  Ne7 {[%clk 0:02:40]} 18. d5 {[%clk 0:02:30]}  b5 {[%clk 0:02:22]} 19. Qc2 {[%clk 0:02:22]}  Qf8 {[%clk 0:02:16]} 20. Ne4 {[%clk 0:02:20]}  Ra8 {[%clk 0:01:45]} 21. g4 {[%clk 0:02:09]}  Qf4+ {[%clk 0:01:37]} 22. Kb1 {[%clk 0:02:08]}  Qxg4 {[%clk 0:01:34]} 23. Rg1 {[%clk 0:02:08]}  Qxh4 {[%clk 0:01:31]} 24. Rg2 {[%clk 0:02:01]}  Raf8 {[%clk 0:01:24]} 25. Rdg1 {[%clk 0:01:59]}  Be5 {[%clk 0:01:24]} 26. a3 {[%clk 0:01:41]}  R3f4 {[%clk 0:01:21]} 27. Nc5 {[%clk 0:01:34]}  Rxf2 {[%clk 0:01:20]} 28. Rxf2 {[%clk 0:01:34]}  Rxf2 {[%clk 0:01:19]} 29. Qd3 {[%clk 0:01:31]}  Rxb2+ {[%clk 0:01:18]} 30. Kc1 {[%clk 0:01:31]}  Qf4+ {[%clk 0:01:04]} 31. Kd1 {[%clk 0:01:29]}  Ra2 {[%clk 0:01:00]} 32. Nb3 {[%clk 0:01:24]}  Qf5 {[%clk 0:00:51]} 33. Qxf5 {[%clk 0:01:15]}  Nxf5 {[%clk 0:00:52]} 34. Re1 {[%clk 0:01:13]}  Bd6 {[%clk 0:00:51]} 35. Kc1 {[%clk 0:01:10]}  Bxa3+ {[%clk 0:00:50]} 36. Kb1 {[%clk 0:01:09]}  Rb2+ {[%clk 0:00:50]} 37. Ka1 {[%clk 0:01:10]}  Rxb3 {[%clk 0:00:51]} 38. d6 {[%clk 0:01:10]}  Bxd6 {[%clk 0:00:50]} 39. Ka2 {[%clk 0:01:10]}  Ra3+ {[%clk 0:00:49]} 40. Kb2 {[%clk 0:01:10]}  b4 {[%clk 0:00:50]} 0-1


[Site "https://www.chess.com"]

[Event "Titled Tuesday Blitz December 20 Late 2022"]
[White "ArchibaldCerveza29"]
[Black "Skibbe, Willi"]
[BlackFideId "4682190"]
[WhiteElo "2432"]
[BlackElo "2345"]
[Result "1-0"]
[Round "06"]
[TimeControl "180+1"]
[Date "2022.12.21"]
[WhiteClock "0:01:32"]
[BlackClock "0:00:57"]

1. d4 {[%clk 0:03:00]}  d5 {[%clk 0:02:11]} 2. c4 {[%clk 0:03:00]}  e6 {[%clk 0:02:05]} 3. Nc3 {[%clk 0:03:01]}  Nf6 {[%clk 0:02:03]} 4. cxd5 {[%clk 0:03:01]}  exd5 {[%clk 0:02:04]} 5. Bg5 {[%clk 0:03:01]}  Be7 {[%clk 0:02:04]} 6. e3 {[%clk 0:03:02]}  O-O {[%clk 0:02:04]} 7. Bd3 {[%clk 0:03:03]}  h6 {[%clk 0:02:05]} 8. Bh4 {[%clk 0:03:03]}  c6 {[%clk 0:02:05]} 9. Nge2 {[%clk 0:03:03]}  Re8 {[%clk 0:02:03]} 10. Qc2 {[%clk 0:03:03]}  Nbd7 {[%clk 0:02:03]} 11. h3 {[%clk 0:03:03]}  Nh5 {[%clk 0:02:01]} 12. Bxe7 {[%clk 0:02:58]}  Qxe7 {[%clk 0:02:02]} 13. O-O-O {[%clk 0:02:57]}  b5 {[%clk 0:01:59]} 14. g4 {[%clk 0:02:40]}  Nhf6 {[%clk 0:01:51]} 15. Ng3 {[%clk 0:02:41]}  Nb6 {[%clk 0:01:47]} 16. Kb1 {[%clk 0:02:40]}  Bd7 {[%clk 0:01:43]} 17. Nf5 {[%clk 0:02:34]}  Bxf5 {[%clk 0:01:43]} 18. Bxf5 {[%clk 0:02:32]}  b4 {[%clk 0:01:43]} 19. Ne2 {[%clk 0:02:32]}  Ne4 {[%clk 0:01:41]} 20. Bxe4 {[%clk 0:02:27]}  Qxe4 {[%clk 0:01:41]} 21. Ng3 {[%clk 0:02:27]}  Qxc2+ {[%clk 0:01:40]} 22. Kxc2 {[%clk 0:02:28]}  Nc4 {[%clk 0:01:38]} 23. b3 {[%clk 0:02:27]}  Nd6 {[%clk 0:01:38]} 24. Kd3 {[%clk 0:02:26]}  Nb5 {[%clk 0:01:36]} 25. Rc1 {[%clk 0:02:21]}  Nc3 {[%clk 0:01:35]} 26. Ne2 {[%clk 0:02:21]}  Nxa2 {[%clk 0:01:30]} 27. Rxc6 {[%clk 0:02:20]}  Rac8 {[%clk 0:01:30]} 28. Ra6 {[%clk 0:02:15]}  Nc3 {[%clk 0:01:30]} 29. Nf4 {[%clk 0:02:05]}  Ne4 {[%clk 0:01:28]} 30. Rf1 {[%clk 0:01:49]}  Rc3+ {[%clk 0:01:25]} 31. Ke2 {[%clk 0:01:46]}  Rc2+ {[%clk 0:01:10]} 32. Kf3 {[%clk 0:01:47]}  Nd2+ {[%clk 0:01:10]} 33. Kg2 {[%clk 0:01:47]}  Nxf1 {[%clk 0:01:10]} 34. Kxf1 {[%clk 0:01:48]}  Rd8 {[%clk 0:01:04]} 35. Ra4 {[%clk 0:01:34]}  a5 {[%clk 0:01:02]} 36. Rxa5 {[%clk 0:01:34]}  Rb2 {[%clk 0:01:02]} 37. Nxd5 {[%clk 0:01:34]}  Rxb3 {[%clk 0:01:01]} 38. Ne7+ {[%clk 0:01:33]}  Kf8 {[%clk 0:00:59]} 39. Nc6 {[%clk 0:01:33]}  Rd6 {[%clk 0:00:57]} 40. Ra8+ {[%clk 0:01:32]} 1-0


[Site "https://www.chess.com"]

[Event "Titled Tuesday Blitz December 20 Late 2022"]
[White "Baches Garcia, Guillermo"]
[Black "Olsen, Filip Boe"]
[WhiteFideId "2209764"]
[BlackFideId "1440640"]
[WhiteElo "2496"]
[BlackElo "2333"]
[Result "0-1"]
[Round "06"]
[TimeControl "180+1"]
[Date "2022.12.20"]
[WhiteClock "0:00:02"]
[BlackClock "0:01:25"]

1. e4 {[%clk 0:03:00]}  c6 {[%clk 0:02:54]} 2. d4 {[%clk 0:02:58]}  d5 {[%clk 0:02:54]} 3. e5 {[%clk 0:02:58]}  Bf5 {[%clk 0:02:53]} 4. Be3 {[%clk 0:02:58]}  e6 {[%clk 0:02:52]} 5. Nd2 {[%clk 0:02:59]}  Nd7 {[%clk 0:02:51]} 6. Be2 {[%clk 0:02:59]}  a6 {[%clk 0:02:49]} 7. f4 {[%clk 0:02:57]}  h5 {[%clk 0:02:46]} 8. Ngf3 {[%clk 0:02:55]}  g6 {[%clk 0:02:44]} 9. Nb3 {[%clk 0:02:48]}  Nh6 {[%clk 0:02:43]} 10. O-O {[%clk 0:02:35]}  Be7 {[%clk 0:02:43]} 11. a4 {[%clk 0:02:21]}  Rc8 {[%clk 0:02:42]} 12. c3 {[%clk 0:02:03]}  Kf8 {[%clk 0:02:41]} 13. Kh1 {[%clk 0:01:59]}  Kg7 {[%clk 0:02:32]} 14. Nc5 {[%clk 0:01:57]}  Qc7 {[%clk 0:02:18]} 15. b4 {[%clk 0:01:54]}  Bg4 {[%clk 0:02:15]} 16. Bg1 {[%clk 0:01:46]}  Nf5 {[%clk 0:02:13]} 17. Ne1 {[%clk 0:01:33]}  Bxe2 {[%clk 0:02:07]} 18. Qxe2 {[%clk 0:01:32]}  h4 {[%clk 0:02:07]} 19. Bf2 {[%clk 0:01:20]}  Nxc5 {[%clk 0:01:48]} 20. bxc5 {[%clk 0:01:16]}  b6 {[%clk 0:01:45]} 21. cxb6 {[%clk 0:01:09]}  Qxb6 {[%clk 0:01:46]} 22. Nd3 {[%clk 0:01:07]}  c5 {[%clk 0:01:38]} 23. dxc5 {[%clk 0:00:49]}  Ng3+ {[%clk 0:01:34]} 24. Bxg3 {[%clk 0:00:34]}  hxg3 {[%clk 0:01:26]} 25. h3 {[%clk 0:00:03]}  Bxc5 {[%clk 0:01:26]} 26. Qf3 {[%clk 0:00:02]}  Bf2 {[%clk 0:01:25]} 0-1


[Site "https://www.chess.com"]

[Event "Titled Tuesday Blitz December 20 Late 2022"]
[White "Bilan, Danila"]
[Black "Figorito, Nick"]
[WhiteFideId "24161918"]
[BlackFideId "30923689"]
[WhiteElo "2182"]
[BlackElo "2415"]
[Result "1-0"]
[Round "06"]
[TimeControl "180+1"]
[Date "2022.12.21"]
[WhiteClock "0:00:09"]
[BlackClock "0:00:06"]

1. d4 {[%clk 0:02:59]}  Nf6 {[%clk 0:03:00]} 2. Nf3 {[%clk 0:02:59]}  g6 {[%clk 0:03:00]} 3. Bg5 {[%clk 0:02:58]}  Bg7 {[%clk 0:03:01]} 4. c3 {[%clk 0:02:58]}  O-O {[%clk 0:03:01]} 5. Nbd2 {[%clk 0:02:58]}  d5 {[%clk 0:03:01]} 6. e3 {[%clk 0:02:58]}  Nbd7 {[%clk 0:03:02]} 7. Bd3 {[%clk 0:02:58]}  b6 {[%clk 0:03:02]} 8. e4 {[%clk 0:02:57]}  dxe4 {[%clk 0:03:01]} 9. Nxe4 {[%clk 0:02:58]}  Bb7 {[%clk 0:02:58]} 10. Qc2 {[%clk 0:02:55]}  Nxe4 {[%clk 0:02:55]} 11. Bxe4 {[%clk 0:02:55]}  Bxe4 {[%clk 0:02:54]} 12. Qxe4 {[%clk 0:02:55]}  Nf6 {[%clk 0:02:54]} 13. Qh4 {[%clk 0:02:52]}  Qd5 {[%clk 0:02:45]} 14. O-O {[%clk 0:02:47]}  c5 {[%clk 0:02:37]} 15. Rfe1 {[%clk 0:02:41]}  cxd4 {[%clk 0:02:32]} 16. Qxd4 {[%clk 0:02:25]}  Qxd4 {[%clk 0:02:29]} 17. Nxd4 {[%clk 0:02:26]}  e6 {[%clk 0:02:25]} 18. Rad1 {[%clk 0:02:22]}  h6 {[%clk 0:02:19]} 19. Bh4 {[%clk 0:02:17]}  Rac8 {[%clk 0:02:12]} 20. Nb5 {[%clk 0:02:02]}  a6 {[%clk 0:01:56]} 21. Nd6 {[%clk 0:01:56]}  Rcd8 {[%clk 0:01:49]} 22. c4 {[%clk 0:01:44]}  g5 {[%clk 0:01:45]} 23. Bg3 {[%clk 0:01:42]}  Rd7 {[%clk 0:01:44]} 24. b4 {[%clk 0:01:27]}  Ne8 {[%clk 0:01:07]} 25. c5 {[%clk 0:01:01]}  bxc5 {[%clk 0:00:54]} 26. bxc5 {[%clk 0:00:59]}  Nxd6 {[%clk 0:00:55]} 27. Bxd6 {[%clk 0:00:46]}  Rfd8 {[%clk 0:00:48]} 28. Rd3 {[%clk 0:00:31]}  Bf8 {[%clk 0:00:37]} 29. Red1 {[%clk 0:00:28]}  Bxd6 {[%clk 0:00:34]} 30. cxd6 {[%clk 0:00:29]}  f5 {[%clk 0:00:31]} 31. g3 {[%clk 0:00:26]}  e5 {[%clk 0:00:29]} 32. Rd5 {[%clk 0:00:24]}  Re8 {[%clk 0:00:26]} 33. Ra5 {[%clk 0:00:20]}  Ra7 {[%clk 0:00:16]} 34. Kg2 {[%clk 0:00:14]}  Kf7 {[%clk 0:00:14]} 35. d7 {[%clk 0:00:12]}  Rd8 {[%clk 0:00:14]} 36. Rxe5 {[%clk 0:00:11]}  Kf6 {[%clk 0:00:13]} 37. Red5 {[%clk 0:00:10]}  Ke6 {[%clk 0:00:13]} 38. Rd6+ {[%clk 0:00:11]}  Ke5 {[%clk 0:00:10]} 39. Rxh6 {[%clk 0:00:11]}  Raxd7 {[%clk 0:00:10]} 40. Rxd7 {[%clk 0:00:09]}  Rxd7 {[%clk 0:00:11]} 41. Rxa6 {[%clk 0:00:09]}  g4 {[%clk 0:00:10]} 42. h3 {[%clk 0:00:08]}  Rd2 {[%clk 0:00:06]} 43. hxg4 {[%clk 0:00:08]}  fxg4 {[%clk 0:00:07]} 44. Ra4 {[%clk 0:00:08]}  Kf5 {[%clk 0:00:06]} 45. Rf4+ {[%clk 0:00:06]}  Kg5 {[%clk 0:00:07]} 46. Ra4 {[%clk 0:00:06]}  Rb2 {[%clk 0:00:07]} 47. Ra5+ {[%clk 0:00:06]}  Kg6 {[%clk 0:00:07]} 48. a4 {[%clk 0:00:07]}  Ra2 {[%clk 0:00:07]} 49. Kf1 {[%clk 0:00:07]}  Ra1+ {[%clk 0:00:07]} 50. Ke2 {[%clk 0:00:08]}  Ra2+ {[%clk 0:00:08]} 51. Ke3 {[%clk 0:00:08]}  Ra3+ {[%clk 0:00:08]} 52. Kf4 {[%clk 0:00:09]}  Rf3+ {[%clk 0:00:09]} 53. Kxg4 {[%clk 0:00:09]}  Rxf2 {[%clk 0:00:10]} 54. Rg5+ {[%clk 0:00:08]}  Kf6 {[%clk 0:00:10]} 55. Ra5 {[%clk 0:00:07]}  Ra2 {[%clk 0:00:10]} 56. Ra6+ {[%clk 0:00:08]}  Ke5 {[%clk 0:00:11]} 57. Kg5 {[%clk 0:00:08]}  Ke4 {[%clk 0:00:11]} 58. g4 {[%clk 0:00:09]}  Kd4 {[%clk 0:00:10]} 59. Kg6 {[%clk 0:00:09]}  Kc4 {[%clk 0:00:10]} 60. g5 {[%clk 0:00:09]}  Kb4 {[%clk 0:00:10]} 61. Kg7 {[%clk 0:00:09]}  Rf2 {[%clk 0:00:11]} 62. g6 {[%clk 0:00:10]}  Kc5 {[%clk 0:00:11]} 63. Re6 {[%clk 0:00:09]}  Kb4 {[%clk 0:00:10]} 64. Re4+ {[%clk 0:00:09]}  Ka5 {[%clk 0:00:10]} 65. Kg8 {[%clk 0:00:10]}  Rb2 {[%clk 0:00:08]} 66. g7 {[%clk 0:00:10]}  Rg2 {[%clk 0:00:08]} 67. Kf7 {[%clk 0:00:08]}  Rf2+ {[%clk 0:00:08]} 68. Kg6 {[%clk 0:00:08]}  Rg2+ {[%clk 0:00:09]} 69. Kf6 {[%clk 0:00:09]}  Rf2+ {[%clk 0:00:08]} 70. Kg5 {[%clk 0:00:09]}  Rg2+ {[%clk 0:00:06]} 71. Rg4 {[%clk 0:00:09]} 1-0


[Site "https://www.chess.com"]

[Event "Titled Tuesday Blitz December 20 Late 2022"]
[White "Bjelobrk, Igor"]
[Black "Urbina Perez, Juan Antonio"]
[WhiteFideId "4300726"]
[BlackFideId "2217368"]
[WhiteElo "2335"]
[BlackElo "2197"]
[Result "1/2-1/2"]
[Round "06"]
[TimeControl "180+1"]
[Date "2022.12.21"]
[WhiteClock "0:00:17"]
[BlackClock "0:00:10"]

1. Nf3 {[%clk 0:02:46]}  d5 {[%clk 0:02:58]} 2. g3 {[%clk 0:02:43]}  c6 {[%clk 0:02:56]} 3. Bg2 {[%clk 0:02:43]}  Bf5 {[%clk 0:02:57]} 4. c4 {[%clk 0:02:42]}  e6 {[%clk 0:02:57]} 5. Qb3 {[%clk 0:02:41]}  Qb6 {[%clk 0:02:57]} 6. d3 {[%clk 0:02:40]}  Qxb3 {[%clk 0:02:56]} 7. axb3 {[%clk 0:02:39]}  Bb4+ {[%clk 0:02:56]} 8. Nc3 {[%clk 0:02:38]}  Nf6 {[%clk 0:02:49]} 9. O-O {[%clk 0:02:38]}  O-O {[%clk 0:02:47]} 10. Nd4 {[%clk 0:02:33]}  Bg6 {[%clk 0:02:46]} 11. Nc2 {[%clk 0:02:32]}  Be7 {[%clk 0:02:42]} 12. f4 {[%clk 0:02:07]}  h6 {[%clk 0:02:39]} 13. Bd2 {[%clk 0:02:01]}  Nbd7 {[%clk 0:02:27]} 14. cxd5 {[%clk 0:01:59]}  cxd5 {[%clk 0:02:23]} 15. b4 {[%clk 0:01:51]}  a6 {[%clk 0:02:17]} 16. e4 {[%clk 0:01:46]}  dxe4 {[%clk 0:02:09]} 17. dxe4 {[%clk 0:01:45]}  Nb6 {[%clk 0:02:07]} 18. Rae1 {[%clk 0:01:37]}  Rfd8 {[%clk 0:02:01]} 19. Bc1 {[%clk 0:01:37]}  Rac8 {[%clk 0:01:54]} 20. f5 {[%clk 0:01:36]}  Bh7 {[%clk 0:01:54]} 21. h3 {[%clk 0:01:33]}  exf5 {[%clk 0:01:45]} 22. exf5 {[%clk 0:01:32]}  Bd6 {[%clk 0:01:45]} 23. g4 {[%clk 0:01:27]}  Rc7 {[%clk 0:01:28]} 24. Rd1 {[%clk 0:01:27]}  Rcd7 {[%clk 0:01:29]} 25. Kh1 {[%clk 0:01:26]}  Be5 {[%clk 0:01:25]} 26. Rxd7 {[%clk 0:01:24]}  Rxd7 {[%clk 0:01:26]} 27. Re1 {[%clk 0:01:14]}  Bd6 {[%clk 0:01:15]} 28. Rd1 {[%clk 0:01:06]}  g6 {[%clk 0:00:59]} 29. fxg6 {[%clk 0:00:54]}  Bxg6 {[%clk 0:01:00]} 30. Ne3 {[%clk 0:00:54]}  Bxb4 {[%clk 0:00:55]} 31. Rxd7 {[%clk 0:00:52]}  Nfxd7 {[%clk 0:00:50]} 32. Bxb7 {[%clk 0:00:51]}  a5 {[%clk 0:00:50]} 33. Nf5 {[%clk 0:00:39]}  Nc5 {[%clk 0:00:44]} 34. Nxh6+ {[%clk 0:00:37]}  Kg7 {[%clk 0:00:42]} 35. Bf3 {[%clk 0:00:37]}  Nd3 {[%clk 0:00:41]} 36. Be3 {[%clk 0:00:32]}  Nc4 {[%clk 0:00:34]} 37. Bg5 {[%clk 0:00:18]}  f6 {[%clk 0:00:30]} 38. Bh4 {[%clk 0:00:15]}  Kxh6 {[%clk 0:00:29]} 39. Bxf6 {[%clk 0:00:15]}  Ndxb2 {[%clk 0:00:26]} 40. Nd5 {[%clk 0:00:15]}  Nd3 {[%clk 0:00:23]} 41. h4 {[%clk 0:00:15]}  Nce5 {[%clk 0:00:20]} 42. Be2 {[%clk 0:00:14]}  Nf2+ {[%clk 0:00:19]} 43. Kg2 {[%clk 0:00:14]}  Nfxg4 {[%clk 0:00:20]} 44. Bg5+ {[%clk 0:00:14]}  Kh7 {[%clk 0:00:19]} 45. Kg3 {[%clk 0:00:13]}  Nh6 {[%clk 0:00:16]} 46. Nf6+ {[%clk 0:00:13]}  Kg7 {[%clk 0:00:15]} 47. h5 {[%clk 0:00:13]}  Bf7 {[%clk 0:00:14]} 48. Ne4 {[%clk 0:00:11]}  a4 {[%clk 0:00:11]} 49. Bf6+ {[%clk 0:00:11]}  Kf8 {[%clk 0:00:10]} 50. Bxe5 {[%clk 0:00:12]}  Nf5+ {[%clk 0:00:09]} 51. Kf4 {[%clk 0:00:12]}  Ne7 {[%clk 0:00:09]} 52. Ba1 {[%clk 0:00:09]}  a3 {[%clk 0:00:07]} 53. h6 {[%clk 0:00:09]}  Ng6+ {[%clk 0:00:07]} 54. Kg5 {[%clk 0:00:10]}  Be7+ {[%clk 0:00:04]} 55. Nf6 {[%clk 0:00:09]}  Nh8 {[%clk 0:00:04]} 56. Bd3 {[%clk 0:00:07]}  a2 {[%clk 0:00:02]} 57. Bf5 {[%clk 0:00:07]}  Bd8 {[%clk 0:00:01]} 58. Be4 {[%clk 0:00:07]}  Be7 {[%clk 0:00:02]} 59. Bc2 {[%clk 0:00:07]}  Bd8 {[%clk 0:00:02]} 60. Ba4 {[%clk 0:00:07]}  Be7 {[%clk 0:00:02]} 61. Kf5 {[%clk 0:00:06]}  Bg6+ {[%clk 0:00:02]} 62. Ke5 {[%clk 0:00:06]}  Bf7 {[%clk 0:00:03]} 63. h7 {[%clk 0:00:06]}  Ng6+ {[%clk 0:00:02]} 64. Kf5 {[%clk 0:00:06]}  Nh8 {[%clk 0:00:02]} 65. Ne4 {[%clk 0:00:05]}  Bg6+ {[%clk 0:00:01]} 66. Kf4 {[%clk 0:00:05]}  Bxh7 {[%clk 0:00:02]} 67. Bxh8 {[%clk 0:00:04]}  Bxe4 {[%clk 0:00:02]} 68. Kxe4 {[%clk 0:00:04]}  a1=Q {[%clk 0:00:03]} 69. Bxa1 {[%clk 0:00:04]}  Kf7 {[%clk 0:00:03]} 70. Bd4 {[%clk 0:00:04]}  Bf6 {[%clk 0:00:03]} 71. Bb3+ {[%clk 0:00:05]}  Kg7 {[%clk 0:00:03]} 72. Be3 {[%clk 0:00:06]}  Kg6 {[%clk 0:00:03]} 73. Bc2 {[%clk 0:00:06]}  Kg7 {[%clk 0:00:04]} 74. Kf5 {[%clk 0:00:06]}  Kf7 {[%clk 0:00:04]} 75. Bf4 {[%clk 0:00:06]}  Ke7 {[%clk 0:00:04]} 76. Bb3 {[%clk 0:00:07]}  Bh4 {[%clk 0:00:04]} 77. Ke5 {[%clk 0:00:07]}  Bf6+ {[%clk 0:00:03]} 78. Kd5 {[%clk 0:00:08]}  Bh4 {[%clk 0:00:03]} 79. Be5 {[%clk 0:00:08]}  Kf7 {[%clk 0:00:02]} 80. Ke4+ {[%clk 0:00:08]}  Kg6 {[%clk 0:00:03]} 81. Kf4 {[%clk 0:00:08]}  Bf6 {[%clk 0:00:03]} 82. Bc2+ {[%clk 0:00:08]}  Kg7 {[%clk 0:00:03]} 83. Bd6 {[%clk 0:00:09]}  Bc3 {[%clk 0:00:03]} 84. Kf5 {[%clk 0:00:09]}  Bb2 {[%clk 0:00:04]} 85. Bb3 {[%clk 0:00:09]}  Ba1 {[%clk 0:00:04]} 86. Be7 {[%clk 0:00:10]}  Bb2 {[%clk 0:00:04]} 87. Bg5 {[%clk 0:00:10]}  Ba1 {[%clk 0:00:05]} 88. Bc1 {[%clk 0:00:11]}  Bc3 {[%clk 0:00:05]} 89. Be3 {[%clk 0:00:11]}  Ba1 {[%clk 0:00:05]} 90. Bc5 {[%clk 0:00:12]}  Bb2 {[%clk 0:00:06]} 91. Bd6 {[%clk 0:00:12]}  Ba1 {[%clk 0:00:06]} 92. Ke4 {[%clk 0:00:12]}  Bb2 {[%clk 0:00:07]} 93. Kd3 {[%clk 0:00:13]}  Ba1 {[%clk 0:00:07]} 94. Kc2 {[%clk 0:00:13]}  Bf6 {[%clk 0:00:08]} 95. Bc5 {[%clk 0:00:14]}  Be5 {[%clk 0:00:08]} 96. Kd3 {[%clk 0:00:15]}  Bf6 {[%clk 0:00:08]} 97. Ke4 {[%clk 0:00:15]}  Bb2 {[%clk 0:00:09]} 98. Kf5 {[%clk 0:00:16]}  Ba1 {[%clk 0:00:09]} 99. Bd6 {[%clk 0:00:16]}  Bb2 {[%clk 0:00:10]} 100. Be5+ {[%clk 0:00:17]}  Bxe5 {[%clk 0:00:10]} 1/2-1/2


[Site "https://www.chess.com"]